fUST/lending_fUST_20251114
["ID","MTS","AMOUNT","RATE_DAILY","PERIOD"]
[393895903,1763077025726,-1602.93241543,0.00029976,2]
[393895904,1763077025829,-1602.93241543,0.00029976,2]
[393895905,1763077025929,-985.34792285,0.00029976,2]
[393895906,1763077026247,-617.58449258,0.00029976,2]
[393895907,1763077026357,-1602.93241543,0.00029976,2]
[393895908,1763077026441,-1602.93241543,0.00029976,2]
[393895909,1763077026528,-1602.93241543,0.00029976,2]
[393895910,1763077026642,-1602.93241543,0.00029976,2]
[393895911,1763077026732,-1602.93241543,0.00029976,2]
[393895912,1763077026826,-1602.93241543,0.00029976,2]
[393895913,1763077026870,150.0,0.0002589,2]
[393895914,1763077027105,-1602.93241543,0.00029976,2]
[393895915,1763077027190,-1602.93241543,0.00029976,2]
[393895916,1763077027276,-1602.93241543,0.00029976,2]
[393895917,1763077027586,177.0,0.0002789,2]
[393895918,1763077028117,-204.0,0.0002989,2]
[393895919,1763077028127,-560.83101484,0.00029976,2]
[393895920,1763077028335,-382.41550742,0.00029976,2]
[393895921,1763077032544,300.0,0.00029,2]
[393895922,1763077037447,-500.0,0.00029973,5]
[393895923,1763077037526,-348.45056487,0.00029973,5]
[393895924,1763077037603,-500.0,0.00029973,5]
[393895925,1763077037687,-231.03472063,0.00029973,5]
[393895926,1763077037772,-158.33784733,0.00029973,5]
[393895927,1763077037868,-659.68589317,0.00029976,2]
[393895928,1763077037957,-1602.93241543,0.00029976,2]
[393895929,1763077038059,-396.19470171,0.00029976,2]
[393895930,1763077038539,-1206.73771372,0.00029976,2]
[393895931,1763077038707,-1602.93241543,0.00029976,2]
[393895932,1763077038802,-1602.93241543,0.00029976,2]
[393895933,1763077039186,-1602.93241543,0.00029976,2]
[393895934,1763077039270,-1602.93241543,0.00029976,2]
[393895935,1763077039353,-1602.93241543,0.00029976,2]
[393895936,1763077039453,-1602.93241543,0.00029976,2]
[393895937,1763077039534,-1602.93241543,0.00029976,2]
[393895938,1763077039620,-1602.93241543,0.00029976,2]
[393895939,1763077039837,-1602.93241543,0.00029976,2]
[393895940,1763077039926,-1602.93241543,0.00029976,2]
[393895941,1763077040016,-1602.93241543,0.00029976,2]
[393895942,1763077040286,-1602.93241543,0.00029976,2]
[393895943,1763077040358,-300.0,0.00029976,2]
[393895944,1763077040430,-1611.41067096,0.00029977,2]
[393895945,1763077040587,-2971.32382722,0.00029977,2]
[393895946,1763077040663,-1959.66,0.00029977,10]
[393895947,1763077041254,150.0,0.00028955,2]
[393895948,1763077041763,-219.45,0.00029977,3]
[393895949,1763077041773,-1409.17033828,0.00029977,10]
[393895950,1763077041840,-1692.33966172,0.00029977,10]
[393895951,1763077041849,-658.35,0.00029977,3]
[393895952,1763077041858,-620.6341655,0.00029977,10]
[393895953,1763077041928,-1959.66,0.00029977,10]
[393895954,1763077041995,-66.0358345,0.00029977,10]
[393895955,1763077042005,-72.00651106,0.00029985,2]
[393895956,1763077056845,589.5153038,0.00029,2]
[393895958,1763077092823,172.42,0.00029,20]
[393895959,1763077102806,172.42,0.00029,7]
[393895960,1763077104106,998.51189327,0.00025243,2]
[393895961,1763077123150,150.0,0.00028926,2]
[393895962,1763077143633,800.0,0.000253,2]
[393895963,1763077143712,595.13639254,0.00026396,2]
[393895967,1763077205379,150.0,0.00028844,2]
[393895973,1763077224521,151.0,0.00039592,30]
[393895974,1763077225143,156.587,0.00039592,120]
[393895975,1763077225773,162.380719,0.00039592,30]
[393895976,1763077226419,168.3888056,0.00039592,120]
[393895977,1763077227059,174.61919141,0.00039592,120]
[393895978,1763077227884,181.08010149,0.00039592,30]
[393895979,1763077228498,187.78006525,0.00039592,120]
[393895980,1763077230794,194.72792766,0.00039592,30]
[393895981,1763077231485,201.93286099,0.00039592,120]
[393895982,1763077232219,209.40437684,0.00039592,20]
[393895983,1763077232734,217.15233878,0.00039592,20]
[393895984,1763077233352,225.18697532,0.00039592,20]
[393895985,1763077233999,233.51889341,0.00039592,20]
[393895986,1763077234656,242.15909246,0.00039592,20]
[393895987,1763077235283,251.11897888,0.00039592,20]
[393895988,1763077235934,260.4103811,0.00039592,20]
[393895989,1763077236581,270.0455652,0.00039592,20]
[393895990,1763077237223,280.03725112,0.00039592,20]
[393895991,1763077237846,290.39862941,0.00039592,20]
[393895992,1763077238478,290.39862941,0.00039592,20]
[393895994,1763077259329,8454.87360746,0.00028963,2]
[393895995,1763077259356,18529.37833234,0.00028963,2]
[393895999,1763077280183,200.0,0.00039592,30]
[393896001,1763077295885,150.0,0.00028898,2]
[393896002,1763077339595,64.61428795,0.0002589,2]
[393896003,1763077339624,85.38571205,0.0002589,2]
[393896004,1763077340114,177.0,0.0002789,2]
[393896005,1763077365289,182.72126,0.00013699,2]
[393896006,1763077365628,182.72126,0.00020187,2]
[393896007,1763077365862,182.72126,0.00026676,2]
[393896010,1763077395006,799.04910955,0.00025243,2]
[393896018,1763077508941,151.0,0.00039592,120]
[393896019,1763077509578,156.587,0.00039592,120]
[393896020,1763077510324,162.380719,0.00039592,120]
[393896021,1763077510828,168.3888056,0.00039592,120]
[393896022,1763077511477,174.61919141,0.00039592,120]
[393896023,1763077512155,181.08010149,0.00039592,120]
[393896024,1763077512844,187.78006525,0.00039592,120]
[393896025,1763077513478,194.72792766,0.00039592,120]
[393896026,1763077514123,201.93286099,0.00039592,120]
[393896027,1763077514782,209.40437684,0.00039592,120]
[393896028,1763077515466,217.15233878,0.00039592,120]
[393896029,1763077516104,225.18697532,0.00039592,120]
[393896030,1763077516730,233.51889341,0.00039592,120]
[393896031,1763077517391,242.15909246,0.00039592,120]
[393896032,1763077518039,251.11897888,0.00039592,120]
[393896033,1763077518911,260.4103811,0.00039592,120]
[393896034,1763077519562,270.0455652,0.00039592,120]
[393896035,1763077520229,280.03725112,0.00039592,120]
[393896036,1763077520907,290.39862941,0.00039592,120]
[393896037,1763077521585,290.39862941,0.00039592,120]
[393896047,1763077580343,200.0,0.00039587,30]
[393896049,1763077598238,-150.0,0.00028886,2]
[393896050,1763077598259,-280.32764722,0.0002899,2]
[393896051,1763077651791,150.0,0.0002589,2]
[393896052,1763077652163,177.0,0.0002789,2]
[393896055,1763077747054,160.0,0.00039587,20]
[393896056,1763077758284,300.0,0.00039587,20]
[393896057,1763077758768,322.38344254,0.00039587,20]
[393896058,1763077807444,160.0,0.00039587,20]
[393896059,1763077831307,151.0,0.00039587,120]
[393896060,1763077831908,156.587,0.00039587,120]
[393896076,1763077832520,162.380719,0.00039587,120]
[393896088,1763077832622,-300.0,0.00028972,2]
[393896090,1763077832632,-395.7277321,0.00028972,2]
[393896092,1763077832644,-804.2722679,0.00028972,2]
[393896094,1763077832654,-500.0,0.00028973,5]
[393896096,1763077832664,-500.0,0.00028973,5]
[393896097,1763077832674,-500.0,0.00028973,5]
[393896098,1763077832683,-295.7277321,0.00028973,5]
[393896099,1763077832694,-204.2722679,0.00028973,5]
[393896100,1763077832704,-1200.0,0.00028989,2]
[393896101,1763077832715,-257.61132884,0.00028989,2]
[393896102,1763077832726,-500.0,0.00028989,2]
[393896103,1763077832735,-588.11640326,0.00028989,2]
[393896104,1763077833309,168.3888056,0.00039587,120]
[393896105,1763077833938,174.61919141,0.00039587,120]
[393896106,1763077834566,181.08010149,0.00039587,120]
[393896107,1763077835190,187.78006525,0.00039587,120]
[393896108,1763077835802,194.72792766,0.00039587,120]
[393896109,1763077836432,201.93286099,0.00039587,120]
[393896110,1763077837090,209.40437684,0.00039587,120]
[393896111,1763077837865,217.15233878,0.00039587,120]
[393896140,1763077838334,225.18697532,0.00039587,120]
[393896151,1763077838454,-150.0,0.0002889,2]
[393896153,1763077838464,-1753.9263029,0.00028979,10]
[393896155,1763077838475,-326.93934112,0.00028979,10]
[393896158,1763077838487,-1269.67435598,0.00028979,10]
[393896160,1763077838496,-262.89488945,0.00028988,2]
[393896162,1763077838505,-340.68902911,0.00028988,2]
[393896164,1763077838519,-159.31097089,0.00028988,2]
[393896167,1763077838528,-210.3900019,0.00028988,2]
[393896170,1763077838540,-289.6099981,0.00028988,2]
[393896172,1763077838550,-357.02142687,0.00028988,2]
[393896174,1763077838559,-147.41982463,0.00028988,2]
[393896176,1763077838570,-352.58017537,0.00028988,2]
[393896178,1763077838580,-500.0,0.00028988,2]
[393896180,1763077838589,-500.0,0.00028988,2]
[393896182,1763077838599,-1605.43649154,0.00028988,2]
[393896184,1763077838609,-500.0,0.00028988,2]
[393896186,1763077838618,-500.0,0.00028988,2]
[393896188,1763077838627,-1605.43649154,0.00028988,2]
[393896190,1763077838638,-492.39052677,0.00028988,2]
[393896193,1763077838647,-500.0,0.00028988,2]
[393896195,1763077838657,-1605.43649154,0.00028988,2]
[393896197,1763077838667,-500.0,0.00028988,2]
[393896199,1763077838676,-500.0,0.00028988,2]
[393896201,1763077838685,-497.63071732,0.00028988,2]
[393896203,1763077838695,-43626.57137685,0.0002899,2]
[393896205,1763077838706,-6892.18037939,0.0002899,2]
[393896207,1763077838715,-165.03,0.00029,7]
[393896209,1763077838725,-7475.98,0.00029,7]
[393896211,1763077838734,-356.2167932,0.00029521,5]
[393896213,1763077838743,-1000.0,0.00029521,5]
[393896215,1763077838752,-501.23509135,0.00029521,5]
[393896217,1763077838761,-6953.59325641,0.00029862,2]
[393896219,1763077838771,-204.0,0.0002989,2]
[393896221,1763077838780,-450.25,0.00029931,3]
[393896223,1763077838789,-36146.75481541,0.00029941,2]
[393896242,1763077838971,233.51889341,0.00039587,120]
[393896308,1763077839591,242.15909246,0.00039587,120]
[393896381,1763077840233,251.11897888,0.00039587,120]
[393896415,1763077840712,-1746.70365617,0.00029941,2]
[393896425,1763077840962,260.4103811,0.00039587,120]
[393896429,1763077841586,270.0455652,0.00039587,120]
[393896430,1763077842235,280.03725112,0.00039587,120]
[393896431,1763077842854,290.39862941,0.00039587,120]
[393896437,1763077843478,290.39862941,0.00039587,120]
[393896446,1763077846842,-500.0,0.00028988,2]
[393896447,1763077846851,-500.0,0.00028988,2]
[393896448,1763077846860,-1613.37383687,0.00028988,2]
[393896449,1763077846870,-500.0,0.00028988,2]
[393896450,1763077846883,-500.0,0.00028988,2]
[393896451,1763077846891,-1613.37383687,0.00028988,2]
[393896452,1763077846903,-500.0,0.00028988,2]
[393896453,1763077846911,-1613.37383687,0.00028988,2]
[393896454,1763077846922,-500.0,0.00028988,2]
[393896455,1763077846931,-500.0,0.00028988,2]
[393896456,1763077847028,-1613.37383687,0.00028988,2]
[393896458,1763077847038,-1613.37383687,0.00028988,2]
[393896459,1763077847048,-628.86046084,0.00028988,2]
[393896460,1763077847057,-1613.37383687,0.00028988,2]
[393896461,1763077847067,-500.0,0.00028988,2]
[393896462,1763077847076,-1613.37383687,0.00028988,2]
[393896463,1763077847086,-1613.37383687,0.00028988,2]
[393896464,1763077847095,-1613.37383687,0.00028988,2]
[393896465,1763077847105,-1613.37383687,0.00028988,2]
[393896466,1763077847114,-1613.37383687,0.00028988,2]
[393896467,1763077847124,-1613.37383687,0.00028988,2]
[393896468,1763077847133,-1613.37383687,0.00028988,2]
[393896469,1763077847143,-1613.37383687,0.00028988,2]
[393896470,1763077847155,-1613.37383687,0.00028988,2]
[393896471,1763077847164,-1294.42147422,0.00028988,2]
[393896472,1763077848057,-47.81418302,0.00028988,2]
[393896473,1763077848163,-271.13817963,0.00028988,2]
[393896474,1763077848173,-1506.6992564,0.00028988,2]
[393896475,1763077848232,-106.67458047,0.00028988,2]
[393896476,1763077848241,-1613.37383687,0.00028988,2]
[393896477,1763077848251,-804.02402302,0.00028988,2]
[393896478,1763077848262,-809.34981385,0.00028988,2]
[393896479,1763077848272,-1613.37383687,0.00028988,2]
[393896480,1763077848281,-827.27634928,0.00028988,2]
[393896486,1763077867194,160.0,0.00039587,20]
[393896487,1763077880824,200.0,0.00039587,30]
[393896488,1763077885277,340.7218483,0.0003288,120]
[393896490,1763077927993,160.0,0.00039587,20]
[393896491,1763077963850,261.1290782,0.0002589,2]
[393896492,1763077986542,199.0,0.00039587,20]
[393896493,1763078045446,-150.0,0.00028879,2]
[393896494,1763078045471,-62.88999997,0.00028967,2]
[393896519,1763078105225,-162.36131816,0.00028685,2]
[393896523,1763078110175,151.0,0.00039587,120]
[393896524,1763078110803,156.587,0.00039587,120]
[393896525,1763078111471,162.380719,0.00039587,120]
[393896526,1763078112245,168.3888056,0.00039587,120]
[393896527,1763078112851,174.61919141,0.00039587,120]
[393896528,1763078113523,181.08010149,0.00039587,120]
[393896529,1763078114149,187.78006525,0.00039587,120]
[393896531,1763078114807,194.72792766,0.00039587,120]
[393896532,1763078115460,201.93286099,0.00039587,120]
[393896533,1763078116105,209.40437684,0.00039587,120]
[393896534,1763078116750,217.15233878,0.00039587,120]
[393896535,1763078117420,225.18697532,0.00039587,120]
[393896536,1763078118051,233.51889341,0.00039587,120]
[393896537,1763078118691,242.15909246,0.00039587,120]
[393896538,1763078119340,251.11897888,0.00039587,120]
[393896539,1763078119996,260.4103811,0.00039587,120]
[393896540,1763078120643,270.0455652,0.00039587,120]
[393896541,1763078121269,280.03725112,0.00039587,120]
[393896542,1763078121973,290.39862941,0.00039587,120]
[393896543,1763078122623,290.39862941,0.00039587,120]
[393896547,1763078180679,200.0,0.00039596,30]
[393896550,1763078296435,716.07850503,0.00025243,2]
[393896551,1763078315514,395.0,0.00025,2]
[393896571,1763078409152,336.17948003,0.00039596,30]
[393896572,1763078409230,250.0,0.00039596,120]
[393896573,1763078409274,151.0,0.00039596,120]
[393896574,1763078409319,250.0,0.00039596,120]
[393896575,1763078409604,414.0,0.00039596,120]
[393896576,1763078409698,151.0,0.00039596,120]
[393896577,1763078409886,250.0,0.00039596,120]
[393896578,1763078409933,250.0,0.00039596,120]
[393896579,1763078410023,156.587,0.00039596,120]
[393896580,1763078410497,429.318,0.00039596,120]
[393896581,1763078410536,151.0,0.00039596,120]
[393896582,1763078410580,250.0,0.00039596,120]
[393896583,1763078410613,250.0,0.00039596,120]
[393896584,1763078410683,162.380719,0.00039596,120]
[393896585,1763078411074,429.318,0.00039596,120]
[393896586,1763078411206,250.0,0.00039596,120]
[393896587,1763078411244,250.0,0.00039596,120]
[393896588,1763078411383,168.3888056,0.00039596,120]
[393896589,1763078411865,250.0,0.00039596,120]
[393896590,1763078411962,151.0,0.00039596,120]
[393896591,1763078412015,174.61919141,0.00039596,120]
[393896592,1763078412199,500.0,0.00039596,30]
[393896593,1763078412400,250.0,0.00039596,120]
[393896594,1763078412622,250.0,0.00039596,120]
[393896595,1763078412685,156.587,0.00039596,120]
[393896596,1763078412800,151.0,0.00039596,120]
[393896597,1763078412831,500.0,0.00039596,30]
[393896598,1763078412862,151.0,0.00039596,120]
[393896599,1763078413257,250.0,0.00039596,120]
[393896600,1763078413296,162.380719,0.00039596,120]
[393896601,1763078413430,151.0,0.00039596,120]
[393896602,1763078413462,156.587,0.00039596,120]
[393896603,1763078413872,250.0,0.00039596,120]
[393896604,1763078413983,168.3888056,0.00039596,120]
[393896605,1763078414092,156.587,0.00039596,120]
[393896606,1763078414517,250.0,0.00039596,120]
[393896607,1763078414625,174.61919141,0.00039596,120]
[393896608,1763078415132,250.0,0.00039596,120]
[393896609,1763078415308,181.08010149,0.00039596,120]
[393896610,1763078415641,250.0,0.00039596,120]
[393896611,1763078415759,250.0,0.00039596,120]
[393896612,1763078415938,187.78006525,0.00039596,120]
[393896613,1763078416358,250.0,0.00039596,120]
[393896614,1763078416390,250.0,0.00039596,120]
[393896615,1763078416583,194.72792766,0.00039596,120]
[393896616,1763078416890,250.0,0.00039596,120]
[393896617,1763078417014,250.0,0.00039596,120]
[393896618,1763078417048,151.0,0.00039596,120]
[393896619,1763078417086,151.0,0.00039596,120]
[393896620,1763078417252,201.93286099,0.00039596,120]
[393896621,1763078417703,250.0,0.00039596,120]
[393896622,1763078417737,151.0,0.00039596,120]
[393896623,1763078417771,151.0,0.00039596,120]
[393896624,1763078417879,209.40437684,0.00039596,120]
[393896625,1763078418338,151.0,0.00039596,120]
[393896626,1763078418371,250.0,0.00039596,120]
[393896627,1763078418530,151.0,0.00039596,120]
[393896628,1763078418571,217.15233878,0.00039596,120]
[393896629,1763078418990,250.0,0.00039596,120]
[393896630,1763078419190,225.18697532,0.00039596,120]
[393896631,1763078419658,250.0,0.00039596,120]
[393896632,1763078419863,233.51889341,0.00039596,120]
[393896633,1763078420058,151.0,0.00039596,120]
[393896634,1763078420322,250.0,0.00039596,120]
[393896635,1763078420664,242.15909246,0.00039596,120]
[393896636,1763078420721,156.587,0.00039596,120]
[393896637,1763078421031,250.0,0.00039596,120]
[393896638,1763078421350,162.380719,0.00039596,120]
[393896639,1763078421381,251.11897888,0.00039596,120]
[393896640,1763078421968,162.380719,0.00039596,120]
[393896641,1763078422083,260.4103811,0.00039596,120]
[393896642,1763078422752,270.0455652,0.00039596,120]
[393896643,1763078423496,280.03725112,0.00039596,120]
[393896644,1763078424186,290.39862941,0.00039596,120]
[393896645,1763078424807,290.39862941,0.00039596,120]
[393896646,1763078424965,250.0,0.00039596,120]
[393896647,1763078425855,309.79441536,0.00039596,120]
[393896648,1763078428149,151.0,0.00039596,20]
[393896649,1763078428202,347.90515592,0.00039596,120]
[393896650,1763078428750,151.0,0.00039596,20]
[393896651,1763078429384,151.0,0.00039596,20]
[393896652,1763078435192,-300.01856523,0.00028773,2]
[393896653,1763078447304,483.15527056,0.00039596,30]
[393896656,1763078464857,4660.8128867,0.00027891,2]
[393896658,1763078480065,200.0,0.00039596,30]
[393896660,1763078678092,400.28388004,0.00028,2]
[393896661,1763078678601,400.28388004,0.0003288,120]
[393896663,1763078706244,156.587,0.00039596,120]
[393896664,1763078712290,250.0,0.00039596,120]
[393896665,1763078712931,250.0,0.00039596,120]
[393896667,1763078712995,156.37143729,0.00039596,120]
[393896668,1763078713561,250.0,0.00039596,120]
[393896669,1763078714214,250.0,0.00039596,120]
[393896670,1763078714892,250.0,0.00039596,120]
[393896671,1763078715328,151.0,0.00039596,120]
[393896672,1763078715827,156.587,0.00039596,120]
[393896673,1763078716457,162.380719,0.00039596,120]
[393896674,1763078717100,168.3888056,0.00039596,120]
[393896675,1763078717723,174.61919141,0.00039596,120]
[393896676,1763078718347,181.08010149,0.00039596,120]
[393896677,1763078718979,187.78006525,0.00039596,120]
[393896678,1763078719608,194.72792766,0.00039596,120]
[393896679,1763078720279,201.93286099,0.00039596,120]
[393896680,1763078720924,209.40437684,0.00039596,120]
[393896681,1763078721637,217.15233878,0.00039596,120]
[393896682,1763078722221,225.18697532,0.00039596,120]
[393896683,1763078722920,233.51889341,0.00039596,120]
[393896684,1763078723554,242.15909246,0.00039596,120]
[393896685,1763078724252,251.11897888,0.00039596,120]
[393896686,1763078724860,260.4103811,0.00039596,120]
[393896687,1763078725497,270.0455652,0.00039596,120]
[393896688,1763078726182,280.03725112,0.00039596,120]
[393896689,1763078726798,290.39862941,0.00039596,120]
[393896690,1763078727625,290.39862941,0.00039596,120]
[393896691,1763078741474,280.0,0.00027809,2]
[393896692,1763078745429,9319.72611996,0.00027809,30]
[393896693,1763078745506,10000.01,0.00027809,30]
[393896694,1763078745575,10000.01,0.00027809,30]
[393896695,1763078745646,10000.01,0.00027809,30]
[393896696,1763078745673,23390.4013984,0.00027809,30]
[393896697,1763078747534,-300.0,0.00027809,30]
[393896698,1763078753036,-1028.15480623,0.00027809,30]
[393896699,1763078758781,-300.0,0.00027809,30]
[393896700,1763078760850,-300.0,0.00027809,30]
[393896703,1763078780197,200.0,0.00039596,30]
[393896704,1763078810173,-327.0,0.00027261,2]
[393896707,1763078866294,2476.32573527,0.000271,3]
[393896708,1763078884759,150.0,0.0002589,2]
[393896710,1763078896195,622.09678575,0.00025243,2]
[393896711,1763078945727,5000.0,0.000271,3]
[393896712,1763078960168,-44.8126424,0.00027261,2]
[393896713,1763078960189,-831.78617388,0.00027707,2]
[393896714,1763078960210,-831.78617387,0.00027707,2]
[393896715,1763078960312,-831.78617387,0.00027707,2]
[393896716,1763078960333,-831.78617387,0.00027708,2]
[393896717,1763078960354,-168.25374298,0.00027708,2]
[393896718,1763078970012,441.10267379,0.000271,3]
[393896720,1763079031191,151.0,0.00039595,120]
[393896761,1763079031813,156.587,0.00039595,120]
[393896762,1763079031927,-1495.31860476,0.00027708,2]
[393896763,1763079031937,-3615.15850793,0.0002779,2]
[393896764,1763079031946,-1200.0,0.00027808,2]
[393896765,1763079031956,-300.0,0.00027808,2]
[393896766,1763079031965,-400.0,0.00027808,2]
[393896767,1763079031974,-24817.52018991,0.00027809,30]
[393896768,1763079031983,-500.0,0.00027833,5]
[393896769,1763079031992,-512.68638679,0.00027833,5]
[393896770,1763079032001,-500.0,0.00027833,5]
[393896771,1763079032010,-500.0,0.00027833,5]
[393896772,1763079032019,-45139.49683807,0.0002789,2]
[393896773,1763079032028,-177.0,0.0002789,2]
[393896774,1763079032125,-500.0,0.00028381,5]
[393896775,1763079032135,-1019.49208786,0.00028381,5]
[393896776,1763079032144,-2043.25542603,0.00028561,2]
[393896777,1763079032154,-5562.87460512,0.0002875,2]
[393896778,1763079032163,-152.81,0.00028773,5]
[393896779,1763079032172,-2999.95,0.00028838,10]
[393896780,1763079032181,-290.78,0.00028839,3]
[393896781,1763079032190,-872.34,0.00028839,3]
[393896782,1763079032199,-151.0,0.00028843,2]
[393896783,1763079032209,-151.0,0.00028843,2]
[393896784,1763079032218,-151.0,0.00028843,2]
[393896785,1763079032227,-151.0,0.00028843,2]
[393896786,1763079032237,-151.0,0.00028843,2]
[393896787,1763079032250,-151.0,0.00028843,2]
[393896788,1763079032259,-151.0,0.00028843,2]
[393896789,1763079032269,-151.0,0.00028843,2]
[393896790,1763079032278,-151.0,0.00028843,2]
[393896791,1763079032288,-151.0,0.00028843,2]
[393896792,1763079032298,-151.0,0.00028843,2]
[393896793,1763079032307,-151.0,0.00028843,2]
[393896794,1763079032318,-151.0,0.00028843,2]
[393896795,1763079032327,-151.0,0.00028843,2]
[393896796,1763079032336,-151.0,0.00028843,2]
[393896797,1763079032346,-151.0,0.00028843,2]
[393896798,1763079032356,-151.0,0.00028843,2]
[393896799,1763079032366,-151.0,0.00028843,2]
[393896800,1763079032376,-151.0,0.00028843,2]
[393896801,1763079032387,-171.59278198,0.00028848,2]
[393896802,1763079032396,-367.8316433,0.00028848,2]
[393896803,1763079032406,-500.0,0.00028848,2]
[393896804,1763079032416,-184.02642261,0.00028848,2]
[393896805,1763079032426,-500.0,0.00028848,2]
[393896806,1763079032435,-500.0,0.00028848,2]
[393896807,1763079032445,-286.19522425,0.00028848,2]
[393896808,1763079032454,-391.19394884,0.00028848,2]
[393896809,1763079032464,-303.77323217,0.00028848,2]
[393896810,1763079032473,-558.99030904,0.00028848,2]
[393896811,1763079032483,-403.20671787,0.00028848,2]
[393896812,1763079032492,-1166.74293366,0.00028848,2]
[393896813,1763079032502,-1166.74293366,0.00028848,2]
[393896814,1763079032511,-1166.74293366,0.00028848,2]
[393896815,1763079032520,-1166.74293366,0.00028848,2]
[393896816,1763079032530,-1166.74293366,0.00028848,2]
[393896817,1763079032540,-1166.74293366,0.00028848,2]
[393896818,1763079032549,-1166.74293366,0.00028848,2]
[393896819,1763079032559,-1166.74293366,0.00028848,2]
[393896820,1763079032568,-1166.74293366,0.00028848,2]
[393896821,1763079032578,-1166.74293366,0.00028848,2]
[393896822,1763079032587,-1166.74293366,0.00028848,2]
[393896823,1763079032597,-1166.74293366,0.00028848,2]
[393896824,1763079032606,-1166.74293366,0.00028848,2]
[393896825,1763079032615,-1166.74293366,0.00028848,2]
[393896826,1763079032626,-1166.74293366,0.00028848,2]
[393896827,1763079032635,-1166.74293366,0.00028848,2]
[393896828,1763079032644,-1166.74293366,0.00028848,2]
[393896829,1763079032654,-1166.74293366,0.00028848,2]
[393896830,1763079032663,-1166.74293366,0.00028848,2]
[393896831,1763079032672,-1166.74293366,0.00028848,2]
[393896832,1763079032681,-1166.74293366,0.00028848,2]
[393896833,1763079032692,-1166.74293366,0.00028848,2]
[393896834,1763079032703,-1166.74293366,0.00028848,2]
[393896835,1763079032712,-1166.74293366,0.00028848,2]
[393896836,1763079032722,-1166.74293366,0.00028848,2]
[393896837,1763079032731,-1166.74293366,0.00028848,2]
[393896838,1763079032741,-1166.74293366,0.00028848,2]
[393896839,1763079032750,-1166.74293366,0.00028848,2]
[393896840,1763079032759,-1166.74293366,0.00028848,2]
[393896841,1763079032769,-1166.74293366,0.00028848,2]
[393896842,1763079032779,-1166.74293366,0.00028848,2]
[393896843,1763079032789,-902.10810449,0.00028848,2]
[393896844,1763079033014,162.380719,0.00039595,120]
[393896845,1763079033082,168.3888056,0.00039595,120]
[393896846,1763079033693,174.61919141,0.00039595,120]
[393896847,1763079034359,181.08010149,0.00039595,120]
[393896848,1763079034990,187.78006525,0.00039595,120]
[393896849,1763079035643,194.72792766,0.00039595,120]
[393896850,1763079036271,201.93286099,0.00039595,120]
[393896851,1763079036925,209.40437684,0.00039595,120]
[393896852,1763079037544,217.15233878,0.00039595,120]
[393896908,1763079038367,225.18697532,0.00039595,120]
[393896911,1763079038387,-264.63482917,0.00028848,2]
[393896913,1763079038397,-369.14745349,0.00028848,2]
[393896915,1763079038409,-1018.71393636,0.00028848,2]
[393896917,1763079038419,-1387.86138985,0.00028848,2]
[393896918,1763079038428,-222.77817975,0.00028848,2]
[393896919,1763079038441,-1165.0832101,0.00028848,2]
[393896920,1763079038450,-16.26217097,0.00028848,2]
[393896921,1763079038462,-504.32018305,0.00028848,2]
[393896922,1763079038474,-867.27903583,0.00028848,2]
[393896923,1763079038484,-1387.86138985,0.00028848,2]
[393896924,1763079038493,-1387.86138985,0.00028848,2]
[393896925,1763079038503,-1387.86138985,0.00028848,2]
[393896926,1763079038513,-1387.86138985,0.00028848,2]
[393896927,1763079038523,-1387.86138985,0.00028848,2]